[Event "Vegagatan O1800 RPD"]
[Site "Goteborgs Schackcentrum, Vegatan 20, Gothenburg, Sweden"]
[Date "2025.05.03"]
[Round "3.1"]
[White "Gallardo, Guillermo"]
[Black "Kenani, Dariush"]
[Result "0-1"]
[TimeControl "29 minutes + 30 seconds per move from move one"]
[WhiteFideId "1773488"]
[BlackFideId "1707973"]
[WhiteElo "1779"]
[BlackElo "2075"]

1. Nf3 {[%clk 00:29:57]} {[%emt 00:00:02]} c5 {[%clk 00:29:47]} {[%emt
00:00:13]} 2. c4 {[%clk 00:30:17]} {[%emt 00:00:11]} Nc6 {[%clk 00:29:55]}
{[%emt 00:00:21]} 3. Nc3 {[%clk 00:30:45]} {[%emt 00:00:03]} Nf6 {[%clk
00:29:54]} {[%emt 00:00:30]} 4. g3 {[%clk 00:31:07]} {[%emt 00:00:08]} g6
{[%clk 00:30:07]} {[%emt 00:00:17]} 5. Bg2 {[%clk 00:31:35]} {[%emt 00:00:02]}
Bg7 {[%clk 00:30:27]} {[%emt 00:00:10]} 6. d3 {[%clk 00:32:00]} {[%emt
00:00:06]} O-O {[%clk 00:30:10]} {[%emt 00:00:47]} 7. O-O {[%clk 00:32:25]}
{[%emt 00:00:05]} d5 {[%clk 00:29:48]} {[%emt 00:00:51]} 8. cxd5 {[%clk
00:32:17]} {[%emt 00:00:39]} Nxd5 {[%clk 00:30:09]} {[%emt 00:00:08]} 9. Bd2
{[%clk 00:31:10]} {[%emt 00:01:37]} Nc7 {[%clk 00:28:08]} {[%emt 00:02:32]} 10.
Rb1 {[%clk 00:31:17]} {[%emt 00:00:23]} e5 {[%clk 00:28:01]} {[%emt 00:00:37]}
11. Qc1 {[%clk 00:29:24]} {[%emt 00:02:19]} Re8 {[%clk 00:25:24]} {[%emt
00:03:11]} 12. Bg5 {[%clk 00:26:52]} {[%emt 00:03:01]} f6 {[%clk 00:22:56]}
{[%emt 00:02:58]} 13. Be3 {[%clk 00:26:18]} {[%emt 00:01:05]} Nd4 {[%clk
00:22:54]} {[%emt 00:00:31]} 14. Rd1 {[%clk 00:23:40]} {[%emt 00:03:08]} Rb8
{[%clk 00:22:18]} {[%emt 00:01:07]} 15. Bxd4 {[%clk 00:21:16]} {[%emt
00:02:54]} exd4 {[%clk 00:20:24]} {[%emt 00:02:24]} 16. Ne4 {[%clk 00:20:32]}
{[%emt 00:01:14]} b6 {[%clk 00:20:21]} {[%emt 00:00:33]} 17. Re1 {[%clk
00:20:19]} {[%emt 00:00:42]} Be6 {[%clk 00:19:37]} {[%emt 00:01:14]} 18. a3
{[%clk 00:20:00]} {[%emt 00:00:48]} Kh8 {[%clk 00:17:34]} {[%emt 00:02:35]} 19.
b4 {[%clk 00:19:50]} {[%emt 00:00:40]} cxb4 {[%clk 00:16:10]} {[%emt 00:01:53]}
20. axb4 {[%clk 00:17:39]} {[%emt 00:02:41]} f5 {[%clk 00:16:15]} {[%emt
00:00:26]} 21. Ned2 {[%clk 00:17:04]} {[%emt 00:01:05]} Nd5 {[%clk 00:15:41]}
{[%emt 00:01:02]} 22. Nc4 {[%clk 00:13:30]} {[%emt 00:04:06]} Bg8 {[%clk
00:14:06]} {[%emt 00:02:04]} 23. Qb2 {[%clk 00:12:28]} {[%emt 00:01:32]} Nc3
{[%clk 00:13:09]} {[%emt 00:01:27]} 24. Ra1 {[%clk 00:11:40]} {[%emt 00:01:19]}
Re7 {[%clk 00:12:58]} {[%emt 00:00:41]} 25. Bf1 {[%clk 00:09:26]} {[%emt
00:02:44]} Rc8 {[%clk 00:12:55]} {[%emt 00:00:32]} 26. Ra3 {[%clk 00:08:04]}
{[%emt 00:01:53]} Bd5 {[%clk 00:11:41]} {[%emt 00:01:42]} 27. Qd2 {[%clk
00:06:34]} {[%emt 00:02:02]} Qd7 {[%clk 00:08:04]} {[%emt 00:04:07]} 28. Qf4
{[%clk 00:02:56]} {[%emt 00:04:07]} Bxc4 {[%clk 00:06:41]} {[%emt 00:01:53]} 29.
dxc4 {[%clk 00:02:05]} {[%emt 00:01:21]} Rxc4 {[%clk 00:06:51]} {[%emt
00:00:20]} 30. Qb8+ {[%clk 00:02:26]} {[%emt 00:00:10]} Rc8 {[%clk 00:07:01]}
{[%emt 00:00:20]} 31. Qf4 {[%clk 00:02:31]} {[%emt 00:00:24]} Rce8 {[%clk
00:07:09]} {[%emt 00:00:22]} 32. Qd2 {[%clk 00:02:00]} {[%emt 00:01:01]} Rd8
{[%clk 00:06:04]} {[%emt 00:01:36]} 33. Qd3 {[%clk 00:01:58]} {[%emt 00:00:32]}
Qd6 {[%clk 00:05:56]} {[%emt 00:00:37]} 34. Rb3 {[%clk 00:01:57]} {[%emt
00:00:32]} Qd5 {[%clk 00:06:07]} {[%emt 00:00:19]} 35. Rb2 {[%clk 00:02:14]}
{[%emt 00:00:13]} Rde8 {[%clk 00:05:50]} {[%emt 00:00:46]} 36. Rd2 {[%clk
00:00:51]} {[%emt 00:01:54]} Rd8 {[%clk 00:05:45]} {[%emt 00:00:34]} 37. Bg2
{[%clk 00:00:55]} {[%emt 00:00:27]} Qd6 {[%clk 00:05:41]} {[%emt 00:00:34]} 38.
e3 {[%clk 00:01:06]} {[%emt 00:00:19]} Qxb4 {[%clk 00:05:24]} {[%emt 00:00:46]}
39. Rc1 {[%clk 00:00:37]} {[%emt 00:01:01]} Red7 {[%clk 00:05:12]} {[%emt
00:00:41]} 40. Qc2 {[%clk 00:00:51]} {[%emt 00:00:16]} dxe3 {[%clk 00:05:10]}
{[%emt 00:00:32]} 41. Rxd7 {[%clk 00:00:53]} {[%emt 00:00:28]} exf2+ {[%clk
00:04:58]} {[%emt 00:00:42]} 42. Qxf2 {[%clk 00:01:20]} {[%emt 00:00:03]} Rxd7
{[%clk 00:05:20]} {[%emt 00:00:07]} 43. Re1 {[%clk 00:01:17]} {[%emt 00:00:33]}
Rd8 {[%clk 00:05:38]} {[%emt 00:00:11]} 44. Ng5 {[%clk 00:01:42]} {[%emt
00:00:06]} Bd4 {[%clk 00:05:42]} {[%emt 00:00:26]} 0-1

[Event "Vegagatan O1800 RPD"]
[Site "Goteborgs Schackcentrum, Vegatan 20, Gothenburg, Sweden"]
[Date "2025.05.03"]
[Round "3.2"]
[White "Torres, Lucas"]
[Black "Karlsson, Roger"]
[Result "1/2-1/2"]
[TimeControl "29 minutes + 30 seconds per move from move one"]
[WhiteFideId "1769464"]
[BlackFideId "1732293"]
[WhiteElo "1998"]
[BlackElo "1886"]

1. e4 {[%clk 00:29:57]} {[%emt 00:00:02]} d6 {[%clk 00:29:56]} {[%emt
00:00:04]} 2. d4 {[%clk 00:30:24]} {[%emt 00:00:03]} Nf6 {[%clk 00:30:22]}
{[%emt 00:00:04]} 3. Bd3 {[%clk 00:30:52]} {[%emt 00:00:02]} e5 {[%clk
00:30:50]} {[%emt 00:00:02]} 4. c3 {[%clk 00:31:11]} {[%emt 00:00:11]} Be7
{[%clk 00:31:08]} {[%emt 00:00:13]} 5. Nf3 {[%clk 00:31:38]} {[%emt 00:00:02]}
Nbd7 {[%clk 00:31:36]} {[%emt 00:00:03]} 6. O-O {[%clk 00:32:04]} {[%emt
00:00:03]} O-O {[%clk 00:32:04]} {[%emt 00:00:03]} 7. Nbd2 {[%clk 00:32:24]}
{[%emt 00:00:09]} c6 {[%clk 00:32:31]} {[%emt 00:00:03]} 8. Re1 {[%clk
00:32:52]} {[%emt 00:00:02]} Qc7 {[%clk 00:33:00]} {[%emt 00:00:02]} 9. Nf1
{[%clk 00:33:18]} {[%emt 00:00:03]} Re8 {[%clk 00:33:11]} {[%emt 00:00:19]} 10.
Ng3 {[%clk 00:33:46]} {[%emt 00:00:02]} Nf8 {[%clk 00:33:37]} {[%emt 00:00:04]}
11. h3 {[%clk 00:33:33]} {[%emt 00:00:43]} Ng6 {[%clk 00:33:49]} {[%emt
00:00:19]} 12. Bd2 {[%clk 00:33:44]} {[%emt 00:00:19]} Bf8 {[%clk 00:32:10]}
{[%emt 00:02:09]} 13. Qc2 {[%clk 00:33:26]} {[%emt 00:00:48]} Bd7 {[%clk
00:31:01]} {[%emt 00:01:38]} 14. Rad1 {[%clk 00:33:41]} {[%emt 00:00:15]} Rad8
{[%clk 00:30:54]} {[%emt 00:00:38]} 15. Bg5 {[%clk 00:33:49]} {[%emt 00:00:21]}
Be7 {[%clk 00:30:06]} {[%emt 00:01:18]} 16. Nf5 {[%clk 00:32:35]} {[%emt
00:01:44]} Qc8 {[%clk 00:30:14]} {[%emt 00:00:22]} 17. dxe5 {[%clk 00:26:41]}
{[%emt 00:06:24]} dxe5 {[%clk 00:29:22]} {[%emt 00:01:22]} 18. Bxf6 {[%clk
00:25:33]} {[%emt 00:01:38]} gxf6 {[%clk 00:29:50]} {[%emt 00:00:02]} 19. N3h4
{[%clk 00:23:35]} {[%emt 00:02:28]} Bf8 {[%clk 00:27:23]} {[%emt 00:02:58]} 20.
Bf1 {[%clk 00:21:57]} {[%emt 00:02:07]} Be6 {[%clk 00:27:21]} {[%emt 00:00:31]}
21. a3 {[%clk 00:19:16]} {[%emt 00:03:12]} Kh8 {[%clk 00:26:52]} {[%emt
00:00:59]} 22. Rxd8 {[%clk 00:18:58]} {[%emt 00:00:49]} Rxd8 {[%clk 00:27:09]}
{[%emt 00:00:12]} 23. Rd1 {[%clk 00:19:21]} {[%emt 00:00:07]} Bc5 {[%emt
00:03:10]} 24. b4 {[%clk 00:17:03]} Bf8 {[%clk 00:27:32]} {[%emt 00:00:15]} 25.
c4 {[%clk 00:16:46]} {[%emt 00:00:47]} Nxh4 {[%clk 00:27:12]} {[%emt 00:00:50]}
26. Nxh4 {[%clk 00:17:11]} {[%emt 00:00:05]} Rxd1 {[%clk 00:27:33]} {[%emt
00:00:09]} 27. Qxd1 {[%clk 00:17:15]} {[%emt 00:00:26]} Qd7 {[%clk 00:28:01]}
{[%emt 00:00:02]} 28. Qf3 {[%clk 00:16:09]} {[%emt 00:01:36]} Bg7 {[%clk
00:28:06]} {[%emt 00:00:25]} 29. Nf5 {[%clk 00:16:17]} {[%emt 00:00:22]} Bxf5
{[%clk 00:28:22]} {[%emt 00:00:15]} 30. exf5 {[%clk 00:16:43]} {[%emt
00:00:04]} Qd4 {[%clk 00:28:15]} {[%emt 00:00:36]} 31. b5 {[%clk 00:16:30]}
{[%emt 00:00:43]} Qd6 {[%clk 00:27:42]} {[%emt 00:01:03]} 32. a4 {[%clk
00:15:49]} {[%emt 00:01:12]} Kg8 {[%clk 00:27:46]} {[%emt 00:00:26]} 33. a5
{[%clk 00:15:12]} {[%emt 00:01:07]} a6 {[%clk 00:27:12]} {[%emt 00:01:04]} 34.
bxa6 {[%clk 00:14:42]} {[%emt 00:01:00]} bxa6 {[%clk 00:27:38]} {[%emt
00:00:04]} 35. Qb3 {[%clk 00:14:49]} {[%emt 00:00:08]} c5 {[%clk 00:27:51]}
{[%emt 00:00:31]} 36. Qb7 {[%clk 00:14:47]} {[%emt 00:00:24]} Bf8 {[%clk
00:27:38]} {[%emt 00:00:51]} 37. g3 {[%clk 00:14:44]} {[%emt 00:00:33]} Be7
{[%clk 00:26:58]} {[%emt 00:01:09]} 38. Bg2 {[%clk 00:14:35]} {[%emt 00:00:40]}
Bd8 {[%clk 00:26:33]} {[%emt 00:00:52]} 39. Bd5 {[%clk 00:13:17]} {[%emt
00:01:51]} Bc7 {[%clk 00:26:40]} {[%emt 00:00:24]} 40. h4 {[%clk 00:09:30]}
{[%emt 00:04:17]} Kg7 {[%clk 00:26:03]} {[%emt 00:01:07]} 41. h5 {[%clk
00:08:39]} {[%emt 00:01:20]} h6 {[%clk 00:26:26]} {[%emt 00:00:07]} 42. Kg2
{[%clk 00:06:48]} {[%emt 00:02:20]} e4 {[%clk 00:26:49]} {[%emt 00:00:07]} 43.
Qc6 {[%clk 00:02:01]} {[%emt 00:05:16]} Qxc6 {[%clk 00:26:41]} {[%emt
00:00:40]} 44. Bxc6 {[%clk 00:02:28]} {[%emt 00:00:04]} Bxa5 {[%clk 00:27:10]}
{[%emt 00:00:01]} 45. Bxe4 {[%clk 00:01:02]} {[%emt 00:01:55]} Bc3 {[%clk
00:27:32]} {[%emt 00:00:08]} 46. Bc6 {[%clk 00:01:27]} {[%emt 00:00:03]} Kf8
{[%clk 00:27:54]} {[%emt 00:00:10]} 47. f4 {[%clk 00:01:52]} {[%emt 00:00:05]}
Ke7 {[%clk 00:28:04]} {[%emt 00:00:20]} 48. Kf3 {[%clk 00:02:16]} {[%emt
00:00:05]} Bd2 {[%clk 00:28:18]} {[%emt 00:00:17]} 49. Ke4 {[%clk 00:02:14]}
{[%emt 00:00:32]} Kd6 {[%clk 00:28:02]} {[%emt 00:00:45]} 1/2-1/2

[Event "Vegagatan O1800 RPD"]
[Site "Goteborgs Schackcentrum, Vegatan 20, Gothenburg, Sweden"]
[Date "2025.05.03"]
[Round "3.3"]
[White "Klouda, James"]
[Black "Kaplan, Viktor"]
[Result "0-1"]
[TimeControl "29 minutes + 30 seconds per move from move one"]
[WhiteFideId "1795759"]
[BlackFideId "1780956"]
[WhiteElo "1814"]
[BlackElo "1822"]

1. d4 {[%clk 00:29:56]} {[%emt 00:00:03]} Nf6 {[%clk 00:29:59]} {[%emt
00:00:02]} 2. Bf4 {[%clk 00:30:23]} {[%emt 00:00:03]} d5 {[%clk 00:30:23]}
{[%emt 00:00:06]} 3. Nf3 {[%clk 00:30:50]} {[%emt 00:00:03]} c5 {[%clk
00:30:51]} {[%emt 00:00:01]} 4. c3 {[%clk 00:31:11]} {[%emt 00:00:09]} Qb6
{[%clk 00:30:40]} {[%emt 00:00:41]} 5. b3 {[%clk 00:29:43]} {[%emt 00:01:59]}
Nc6 {[%clk 00:30:24]} {[%emt 00:00:46]} 6. e3 {[%clk 00:30:07]} {[%emt
00:00:05]} h6 {[%clk 00:30:25]} {[%emt 00:00:28]} 7. Bd3 {[%clk 00:30:29]}
{[%emt 00:00:09]} e6 {[%clk 00:29:15]} {[%emt 00:01:41]} 8. Nbd2 {[%clk
00:30:37]} {[%emt 00:00:21]} Nh5 {[%clk 00:28:42]} {[%emt 00:01:04]} 9. Bg3
{[%clk 00:30:40]} {[%emt 00:00:26]} Nxg3 {[%clk 00:28:49]} {[%emt 00:00:24]} 10.
fxg3 {[%clk 00:31:06]} {[%emt 00:00:03]} Bd6 {[%clk 00:28:41]} {[%emt
00:00:38]} 11. Qe2 {[%clk 00:30:28]} {[%emt 00:01:07]} Bd7 {[%clk 00:26:33]}
{[%emt 00:02:40]} 12. e4 {[%clk 00:30:32]} {[%emt 00:00:25]} O-O-O {[%clk
00:25:18]} {[%emt 00:01:46]} 13. e5 {[%clk 00:30:05]} {[%emt 00:00:56]} Be7
{[%clk 00:25:31]} {[%emt 00:00:18]} 14. O-O {[%clk 00:29:32]} {[%emt 00:01:02]}
cxd4 {[%clk 00:24:55]} {[%emt 00:01:07]} 15. c4 {[%clk 00:29:40]} {[%emt
00:00:22]} Nb4 {[%clk 00:21:05]} {[%emt 00:04:20]} 16. Kh1 {[%clk 00:27:27]}
{[%emt 00:02:43]} f5 {[%clk 00:19:18]} {[%emt 00:02:17]} 17. a3 {[%clk
00:26:40]} {[%emt 00:01:16]} Nxd3 {[%clk 00:18:24]} {[%emt 00:01:24]} 18. Qxd3
{[%clk 00:27:05]} {[%emt 00:00:05]} Bc6 {[%clk 00:17:48]} {[%emt 00:01:07]} 19.
Rfc1 {[%clk 00:27:00]} {[%emt 00:00:35]} Kb8 {[%clk 00:17:55]} {[%emt
00:00:23]} 20. b4 {[%clk 00:27:06]} {[%emt 00:00:24]} dxc4 {[%clk 00:17:44]}
{[%emt 00:00:41]} 21. Nxc4 {[%clk 00:27:10]} {[%emt 00:00:25]} Qa6 {[%clk
00:15:49]} {[%emt 00:02:25]} 22. Rab1 {[%clk 00:25:55]} {[%emt 00:01:45]} Be4
{[%clk 00:15:29]} {[%emt 00:00:50]} 23. Qb3 {[%clk 00:24:43]} {[%emt 00:01:42]}
b5 {[%clk 00:12:02]} {[%emt 00:03:58]} 24. Na5 {[%clk 00:15:03]} {[%emt
00:10:10]} Rc8 {[%clk 00:11:52]} {[%emt 00:00:39]} 25. Ra1 {[%clk 00:15:04]}
{[%emt 00:00:30]} Qb6 {[%clk 00:10:00]} {[%emt 00:02:22]} 26. Nxd4 {[%clk
00:14:10]} {[%emt 00:01:23]} Qxd4 {[%clk 00:09:37]} {[%emt 00:00:54]} 27. Qxe6
{[%clk 00:13:44]} {[%emt 00:00:55]} Qb2 {[%clk 00:09:07]} {[%emt 00:01:00]} 28.
Rg1 {[%clk 00:12:48]} {[%emt 00:01:25]} Bxg2+ {[%clk 00:07:59]} {[%emt
00:01:39]} 29. Rxg2 {[%clk 00:13:14]} {[%emt 00:00:03]} Qxa1+ {[%clk 00:08:27]}
{[%emt 00:00:03]} 30. Rg1 {[%clk 00:13:42]} {[%emt 00:00:02]} Rc1 {[%clk
00:08:30]} {[%emt 00:00:28]} 31. Nc6+ {[%clk 00:10:23]} {[%emt 00:03:49]} Rxc6
{[%clk 00:07:45]} {[%emt 00:01:15]} 32. Qxc6 {[%clk 00:10:41]} {[%emt
00:00:12]} Qxe5 {[%clk 00:08:10]} {[%emt 00:00:04]} 33. Rd1 {[%clk 00:10:34]}
{[%emt 00:00:37]} Qe4+ {[%clk 00:08:14]} {[%emt 00:00:27]} 34. Qxe4 {[%clk
00:10:46]} {[%emt 00:00:17]} fxe4 {[%clk 00:08:43]} {[%emt 00:00:02]} 35. Rd7
{[%clk 00:11:11]} {[%emt 00:00:05]} Bf6 {[%clk 00:09:09]} {[%emt 00:00:04]} 36.
Kg2 {[%clk 00:11:21]} {[%emt 00:00:20]} Rd8 {[%clk 00:09:29]} {[%emt 00:00:09]}
37. Rxd8+ {[%clk 00:11:38]} {[%emt 00:00:13]} Bxd8 {[%clk 00:09:58]} {[%emt
00:00:02]} 38. Kf2 {[%clk 00:12:02]} {[%emt 00:00:05]} Bb6+ {[%clk 00:10:26]}
{[%emt 00:00:02]} 39. Ke2 {[%clk 00:12:30]} {[%emt 00:00:02]} Kc7 {[%clk
00:10:53]} {[%emt 00:00:04]} 40. g4 {[%clk 00:12:46]} {[%emt 00:00:13]} g5
{[%clk 00:11:19]} {[%emt 00:00:04]} 41. h3 {[%clk 00:13:07]} {[%emt 00:00:10]}
Kd6 {[%clk 00:11:48]} 42. Kd2 {[%clk 00:13:32]} {[%emt 00:00:05]} Ke5 {[%clk
00:12:15]} {[%emt 00:00:04]} 0-1

[Event "Vegagatan O1800 RPD"]
[Site "Goteborgs Schackcentrum, Vegatan 20, Gothenburg, Sweden"]
[Date "2025.05.03"]
[Round "3.4"]
[White "Garby, Jacob"]
[Black "Christoforidis, Nicolas"]
[Result "0-1"]
[TimeControl "29 minutes + 30 seconds per move from move one"]
[WhiteFideId "1786520"]
[BlackFideId "1789180"]
[WhiteElo "1820"]
[BlackElo "1829"]

1. d4 {[%clk 00:29:57]} {[%emt 00:00:02]} d6 {[%clk 00:29:56]} {[%emt
00:00:05]} 2. d5 {[%clk 00:30:07]} {[%emt 00:00:20]} c6 {[%clk 00:30:05]}
{[%emt 00:00:21]} 3. c4 {[%clk 00:30:06]} {[%emt 00:00:30]} Nf6 {[%clk
00:30:27]} {[%emt 00:00:09]} 4. Nc3 {[%clk 00:30:00]} {[%emt 00:00:36]} g6
{[%clk 00:30:42]} {[%emt 00:00:15]} 5. Nf3 {[%clk 00:30:03]} {[%emt 00:00:26]}
Bg7 {[%clk 00:30:58]} {[%emt 00:00:14]} 6. Bg5 {[%clk 00:29:23]} {[%emt
00:01:11]} Qa5 {[%clk 00:30:34]} {[%emt 00:00:54]} 7. Qd2 {[%clk 00:26:23]}
{[%emt 00:03:29]} Nbd7 {[%clk 00:28:30]} {[%emt 00:02:34]} 8. a3 {[%clk
00:26:00]} {[%emt 00:00:53]} Qc7 {[%clk 00:28:41]} {[%emt 00:00:20]} 9. g3
{[%clk 00:23:25]} {[%emt 00:03:04]} a5 {[%clk 00:28:26]} {[%emt 00:00:45]} 10.
Bg2 {[%clk 00:23:23]} {[%emt 00:00:30]} Nc5 {[%clk 00:28:22]} {[%emt 00:00:37]}
11. Qc2 {[%clk 00:19:45]} {[%emt 00:04:07]} Bf5 {[%clk 00:27:37]} {[%emt
00:01:15]} 12. Qd1 {[%clk 00:19:57]} {[%emt 00:00:18]} Nfe4 {[%clk 00:26:19]}
{[%emt 00:01:48]} 13. Rc1 {[%clk 00:17:29]} {[%emt 00:02:58]} Nxc3 {[%clk
00:23:40]} {[%emt 00:03:10]} 14. bxc3 {[%clk 00:17:41]} {[%emt 00:00:18]} Ne4
{[%clk 00:23:17]} {[%emt 00:00:52]} 15. Nd4 {[%clk 00:16:22]} {[%emt 00:01:48]}
Nxg5 {[%emt 00:09:16]} 16. Nxf5 {[%clk 00:15:39]} {[%emt 00:00:02]} gxf5 {[%clk
00:14:59]} {[%emt 00:01:15]} 17. h4 {[%clk 00:15:52]} {[%emt 00:00:16]} Ne4
{[%clk 00:15:23]} {[%emt 00:00:06]} 18. Bxe4 {[%clk 00:14:22]} {[%emt
00:02:01]} fxe4 {[%clk 00:15:50]} {[%emt 00:00:02]} 19. Qc2 {[%clk 00:14:36]}
{[%emt 00:00:16]} cxd5 {[%clk 00:14:51]} {[%emt 00:01:29]} 20. O-O {[%clk
00:14:45]} {[%emt 00:00:20]} Qxc4 {[%clk 00:14:55]} {[%emt 00:00:27]} 21. Rfd1
{[%clk 00:14:33]} {[%emt 00:00:41]} O-O {[%clk 00:14:12]} {[%emt 00:01:14]} 0-1